{"text_format":"3","workbook":"xlsx","n_sheets":2,"sheets":["Inventar opreme","Nastavitve"],"not_rendered":{"defined_names":4},"read":"whole","date_system":"1900"}

{"sheet":"Inventar opreme","index":0,"n_rows":35,"n_cols":6,"rows_kept":35,"merged":[[0,1,2,2],[0,4,0,5]]}
[]
[{"$nulls":4},"Označi PREDMETE starejše od:"]
[{"$nulls":4},4]
[]
[null,"ID OPREME","ELEMENT NAME","DODELJENO","DATUM IZDAJE","STAROST PREDMETA"]
[null,"ELEMENT0001","stol","Zaposleni 1",{"$f":"TODAY()-25","v":"2012-10-26"},{"$f":"IF(tblInventarOpreme[[#This Row],[DATUM IZDAJE]]<>\"\",TODAY()-tblInventarOpreme[[#This Row],[DATUM IZDAJE]],\"\")","v":{"v":25,"d":"25 dni"}}]
[null,"ELEMENT0002","laserski tiskalnik","Zaposleni 2",{"$f":"TODAY()-479","v":"2011-07-30"},{"$f":"IF(tblInventarOpreme[[#This Row],[DATUM IZDAJE]]<>\"\",TODAY()-tblInventarOpreme[[#This Row],[DATUM IZDAJE]],\"\")","v":{"v":479,"d":"479 dni"}}]
[null,"ELEMENT0003","optični bralnik","Zaposleni 3",{"$f":"TODAY()-177","v":"2012-05-27"},{"$f":"IF(tblInventarOpreme[[#This Row],[DATUM IZDAJE]]<>\"\",TODAY()-tblInventarOpreme[[#This Row],[DATUM IZDAJE]],\"\")","v":{"v":177,"d":"177 dni"}}]
[null,"ELEMENT0004","laserski tiskalnik","Zaposleni 7",{"$f":"TODAY()-18","v":"2012-11-02"},{"$f":"IF(tblInventarOpreme[[#This Row],[DATUM IZDAJE]]<>\"\",TODAY()-tblInventarOpreme[[#This Row],[DATUM IZDAJE]],\"\")","v":{"v":18,"d":"18 dni"}}]
[null,"ELEMENT0005","aparat za pripravljanje kave","Zaposleni 20",{"$f":"TODAY()-227","v":"2012-04-07"},{"$f":"IF(tblInventarOpreme[[#This Row],[DATUM IZDAJE]]<>\"\",TODAY()-tblInventarOpreme[[#This Row],[DATUM IZDAJE]],\"\")","v":{"v":227,"d":"227 dni"}}]
[null,"ELEMENT0006","optični bralnik","Zaposleni 14",{"$f":"TODAY()-50","v":"2012-10-01"},{"$f":"IF(tblInventarOpreme[[#This Row],[DATUM IZDAJE]]<>\"\",TODAY()-tblInventarOpreme[[#This Row],[DATUM IZDAJE]],\"\")","v":{"v":50,"d":"50 dni"}}]
[null,"ELEMENT0007","tabela","Zaposleni 4",{"$f":"TODAY()-120","v":"2012-07-23"},{"$f":"IF(tblInventarOpreme[[#This Row],[DATUM IZDAJE]]<>\"\",TODAY()-tblInventarOpreme[[#This Row],[DATUM IZDAJE]],\"\")","v":{"v":120,"d":"120 dni"}}]
[null,"ELEMENT0008","kopirni stroj","Zaposleni 12",{"$f":"TODAY()-499","v":"2011-07-10"},{"$f":"IF(tblInventarOpreme[[#This Row],[DATUM IZDAJE]]<>\"\",TODAY()-tblInventarOpreme[[#This Row],[DATUM IZDAJE]],\"\")","v":{"v":499,"d":"499 dni"}}]
[null,"ELEMENT0009","dodatni monitor","Zaposleni 8",{"$f":"TODAY()-30","v":"2012-10-21"},{"$f":"IF(tblInventarOpreme[[#This Row],[DATUM IZDAJE]]<>\"\",TODAY()-tblInventarOpreme[[#This Row],[DATUM IZDAJE]],\"\")","v":{"v":30,"d":"30 dni"}}]
[null,"ELEMENT0010","tabla","Zaposleni 19",{"$f":"TODAY()-50","v":"2012-10-01"},{"$f":"IF(tblInventarOpreme[[#This Row],[DATUM IZDAJE]]<>\"\",TODAY()-tblInventarOpreme[[#This Row],[DATUM IZDAJE]],\"\")","v":{"v":50,"d":"50 dni"}}]
[null,"ELEMENT0011","kopirni stroj","Zaposleni 12",{"$f":"TODAY()-450","v":"2011-08-28"},{"$f":"IF(tblInventarOpreme[[#This Row],[DATUM IZDAJE]]<>\"\",TODAY()-tblInventarOpreme[[#This Row],[DATUM IZDAJE]],\"\")","v":{"v":450,"d":"450 dni"}}]
[null,"ELEMENT0012","pisarniški material","Zaposleni 18",{"$f":"TODAY()-420","v":"2011-09-27"},{"$f":"IF(tblInventarOpreme[[#This Row],[DATUM IZDAJE]]<>\"\",TODAY()-tblInventarOpreme[[#This Row],[DATUM IZDAJE]],\"\")","v":{"v":420,"d":"420 dni"}}]
[null,"ELEMENT0013","dodatni monitor","Zaposleni 8",{"$f":"TODAY()-250","v":"2012-03-15"},{"$f":"IF(tblInventarOpreme[[#This Row],[DATUM IZDAJE]]<>\"\",TODAY()-tblInventarOpreme[[#This Row],[DATUM IZDAJE]],\"\")","v":{"v":250,"d":"250 dni"}}]
[null,"ELEMENT0014","aparat za pripravljanje kave","Zaposleni 9",{"$f":"TODAY()-45","v":"2012-10-06"},{"$f":"IF(tblInventarOpreme[[#This Row],[DATUM IZDAJE]]<>\"\",TODAY()-tblInventarOpreme[[#This Row],[DATUM IZDAJE]],\"\")","v":{"v":45,"d":"45 dni"}}]
[null,"ELEMENT0015","pisarniški material","Zaposleni 13",{"$f":"TODAY()-502","v":"2011-07-07"},{"$f":"IF(tblInventarOpreme[[#This Row],[DATUM IZDAJE]]<>\"\",TODAY()-tblInventarOpreme[[#This Row],[DATUM IZDAJE]],\"\")","v":{"v":502,"d":"502 dni"}}]
[null,"ELEMENT0016","optični bralnik","Zaposleni 1",{"$f":"TODAY()-350","v":"2011-12-06"},{"$f":"IF(tblInventarOpreme[[#This Row],[DATUM IZDAJE]]<>\"\",TODAY()-tblInventarOpreme[[#This Row],[DATUM IZDAJE]],\"\")","v":{"v":350,"d":"350 dni"}}]
[null,"ELEMENT0017","kopirni stroj","Zaposleni 19",{"$f":"TODAY()-125","v":"2012-07-18"},{"$f":"IF(tblInventarOpreme[[#This Row],[DATUM IZDAJE]]<>\"\",TODAY()-tblInventarOpreme[[#This Row],[DATUM IZDAJE]],\"\")","v":{"v":125,"d":"125 dni"}}]
[null,"ELEMENT0018","tabla","Zaposleni 15",{"$f":"TODAY()-90","v":"2012-08-22"},{"$f":"IF(tblInventarOpreme[[#This Row],[DATUM IZDAJE]]<>\"\",TODAY()-tblInventarOpreme[[#This Row],[DATUM IZDAJE]],\"\")","v":{"v":90,"d":"90 dni"}}]
[null,"ELEMENT0019","stol","Zaposleni 16",{"$f":"TODAY()-730","v":"2010-11-21"},{"$f":"IF(tblInventarOpreme[[#This Row],[DATUM IZDAJE]]<>\"\",TODAY()-tblInventarOpreme[[#This Row],[DATUM IZDAJE]],\"\")","v":{"v":730,"d":"730 dni"}}]
[null,"ELEMENT0020","krpa za brisanje (1 komplet)","Zaposleni 3",{"$f":"TODAY()-540","v":"2011-05-30"},{"$f":"IF(tblInventarOpreme[[#This Row],[DATUM IZDAJE]]<>\"\",TODAY()-tblInventarOpreme[[#This Row],[DATUM IZDAJE]],\"\")","v":{"v":540,"d":"540 dni"}}]
[null,"ELEMENT0021","laserski tiskalnik","Zaposleni 7",{"$f":"TODAY()-18","v":"2012-11-02"},{"$f":"IF(tblInventarOpreme[[#This Row],[DATUM IZDAJE]]<>\"\",TODAY()-tblInventarOpreme[[#This Row],[DATUM IZDAJE]],\"\")","v":{"v":18,"d":"18 dni"}}]
[null,"ELEMENT0022","prenosni računalnik","Zaposleni 8",{"$f":"TODAY()-283","v":"2012-02-11"},{"$f":"IF(tblInventarOpreme[[#This Row],[DATUM IZDAJE]]<>\"\",TODAY()-tblInventarOpreme[[#This Row],[DATUM IZDAJE]],\"\")","v":{"v":283,"d":"283 dni"}}]
[null,"ELEMENT0023","pisarniški material","Zaposleni 9",{"$f":"TODAY()-479","v":"2011-07-30"},{"$f":"IF(tblInventarOpreme[[#This Row],[DATUM IZDAJE]]<>\"\",TODAY()-tblInventarOpreme[[#This Row],[DATUM IZDAJE]],\"\")","v":{"v":479,"d":"479 dni"}}]
[null,"ELEMENT0024","laserski tiskalnik","Zaposleni 19",{"$f":"TODAY()-355","v":"2011-12-01"},{"$f":"IF(tblInventarOpreme[[#This Row],[DATUM IZDAJE]]<>\"\",TODAY()-tblInventarOpreme[[#This Row],[DATUM IZDAJE]],\"\")","v":{"v":355,"d":"355 dni"}}]
[null,"ELEMENT0025","tabela","Zaposleni 7",{"$f":"TODAY()-28","v":"2012-10-23"},{"$f":"IF(tblInventarOpreme[[#This Row],[DATUM IZDAJE]]<>\"\",TODAY()-tblInventarOpreme[[#This Row],[DATUM IZDAJE]],\"\")","v":{"v":28,"d":"28 dni"}}]
[null,"ELEMENT0026","tabla","Zaposleni 8",{"$f":"TODAY()-28","v":"2012-10-23"},{"$f":"IF(tblInventarOpreme[[#This Row],[DATUM IZDAJE]]<>\"\",TODAY()-tblInventarOpreme[[#This Row],[DATUM IZDAJE]],\"\")","v":{"v":28,"d":"28 dni"}}]
[null,"ELEMENT0027","prenosni računalnik","Zaposleni 19",{"$f":"TODAY()-736","v":"2010-11-15"},{"$f":"IF(tblInventarOpreme[[#This Row],[DATUM IZDAJE]]<>\"\",TODAY()-tblInventarOpreme[[#This Row],[DATUM IZDAJE]],\"\")","v":{"v":736,"d":"736 dni"}}]
[null,"ELEMENT0028","tabela","Zaposleni 12",{"$f":"TODAY()-68","v":"2012-09-13"},{"$f":"IF(tblInventarOpreme[[#This Row],[DATUM IZDAJE]]<>\"\",TODAY()-tblInventarOpreme[[#This Row],[DATUM IZDAJE]],\"\")","v":{"v":68,"d":"68 dni"}}]
[null,"ELEMENT0029","optični bralnik","Zaposleni 14",{"$f":"TODAY()-67","v":"2012-09-14"},{"$f":"IF(tblInventarOpreme[[#This Row],[DATUM IZDAJE]]<>\"\",TODAY()-tblInventarOpreme[[#This Row],[DATUM IZDAJE]],\"\")","v":{"v":67,"d":"67 dni"}}]
[null,"ELEMENT0030","aparat za pripravljanje kave","Zaposleni 3",{"$f":"TODAY()-149","v":"2012-06-24"},{"$f":"IF(tblInventarOpreme[[#This Row],[DATUM IZDAJE]]<>\"\",TODAY()-tblInventarOpreme[[#This Row],[DATUM IZDAJE]],\"\")","v":{"v":149,"d":"149 dni"}}]

{"sheet":"Nastavitve","index":1,"n_rows":23,"n_cols":4,"rows_kept":23}
[]
[]
[null,"ZAPOSLENI",null,"PREDMETI"]
[null,"Zaposleni 1",null,"stol"]
[null,"Zaposleni 2",null,"aparat za pripravljanje kave"]
[null,"Zaposleni 3",null,"kopirni stroj"]
[null,"Zaposleni 4",null,"namizni računalnik"]
[null,"Zaposleni 5",null,"krpa za brisanje (1 komplet)"]
[null,"Zaposleni 6",null,"dodatni monitor"]
[null,"Zaposleni 7",null,"brizgalni tiskalnik"]
[null,"Zaposleni 8",null,"prenosni računalnik"]
[null,"Zaposleni 9",null,"laserski tiskalnik"]
[null,"Zaposleni 10",null,"markerji (paket treh)"]
[null,"Zaposleni 11",null,"optični bralnik"]
[null,"Zaposleni 12",null,"pisarniški material"]
[null,"Zaposleni 13",null,"tabela"]
[null,"Zaposleni 14",null,"pogon USB"]
[null,"Zaposleni 15",null,"tabla"]
[null,"Zaposleni 16"]
[null,"Zaposleni 17"]
[null,"Zaposleni 18"]
[null,"Zaposleni 19"]
[null,"Zaposleni 20"]